[Event "5th Sharjah Masters 2022"]
[Site "Sharjah"]
[Date "2022.05.23"]
[Round "3.19"]
[White "Vokhidov, Shamsiddin"]
[Black "Niemann, Hans Moke"]
[Result "1/2-1/2"]
[ECO "C67"]
[WhiteElo "2536"]
[BlackElo "2656"]
[Annotator "TA"]
[PlyCount "73"]
[EventDate "2022.05.21"]
[EventType "swiss"]
[EventCountry "UAE"]
[SourceTitle "playchess.com"]
[Source "ChessBase"]
[SourceQuality "1"]
[TimeControl "5400+30"]

{[%evp 15,73,14,18,19,15,22,17,14,19,11,18,24,22,16,22,19,19,10,9,10,15,10,5,0,0,0,8,9,17,8,12,1,8,7,8,0,25,22,16,10,10,14,20,21,81,106,102,81,184,184,184,184,184,184,184,184,184,184,184,184]} 1. e4 {[%emt 0:00:06]} e5 {[%emt 0:00:16]} 2. Nf3 {[%emt 0:00:03]} Nc6 {[%emt 0:00:12]} 3. Bb5 {[%emt 0:00:04]} Nf6 {[%emt 0:00:10]} 4. O-O {[%emt 1:32:17][%cal Bh1f1,Bf1e1,Be1e5][%mdl 32]} Nxe4 {[%emt 0:00:19]} 5. Re1 {[%emt 0:00:00]} Nd6 {[%emt 0:00:11]} 6. Nxe5 {[%emt 0:00:00]} Be7 {[%emt 0:00:11]} 7. Bf1 {[%emt 0:00:00]} Nxe5 {[%emt 0:00:10]} 8. Rxe5 {[%emt 0:00:00]} O-O {[%emt 0:00:07]} 9. Nc3 {[%emt 0:00:00] C67: Ruy Lopez: Berlin Defence: 4 0-0 Nxe4.} Bf6 {[%emt 0:00:18]} 10. Re1 {[%emt 0:00:00]} Re8 {[%emt 0:00:07]} 11. Nd5 {[%emt 0:00:00] The position is equal.} Rxe1 {[%emt 0:00:17]} 12. Qxe1 {[%emt 0:00:00][%cal Od2d4]} b6 {[%emt 0:00:05]} 13. Nxf6+ {[%emt 0:00:00]} Qxf6 {[%emt 0:01:01]} 14. d3 {[%emt 0:00:00]} Bb7 {[%emt 0:00:10]} 15. Qb4 {[%emt 0:00:00]} c5 {[%emt 0:00:56]} 16. Qf4 {[%emt 0:00:00]} Qxf4 {[%emt 0:00:06]} 17. Bxf4 {[%emt 0:00:00]} Nf5 {[%emt 0:00:10] [#]} 18. f3 $146 {[%emt 0:00:00]} ({Predecessor:} 18. Re1 f6 19. c3 g5 20. Bd2 Bd5 21. a3 h5 22. f3 Kf7 23. Kf2 a5 24. Be2 {½-½ (41) Caruana,F (2792)-So,W (2772) Chess.com INT 2022}) 18... f6 {[%emt 0:00:14]} 19. Kf2 {[%emt 0:00:00]} Kf7 {[%emt 0:00:20]} 20. c3 {[%emt 0:00:00]} Bd5 {[%emt 0:00:11]} 21. a4 {[%emt 0:00:00]} g5 {[%emt 0:02:09]} 22. Bd2 {[%emt 0:00:00]} a5 {[%emt 0:00:18]} 23. g4 {[%emt 0:00:00]} Ne7 {[%emt 0:15:21]} 24. f4 {[%emt 0:00:00][%cal Bf3f4,Bf4f5][%mdl 32]} h6 {[%emt 0:02:11]} 25. h3 {[%emt 0:00:00]} Ng6 {[%emt 0:02:02]} 26. f5 {[%emt 0:00:00]} Ne5 {[%emt 0:00:41]} 27. c4 {[%emt 0:00:00]} Bc6 {[%emt 0:12:43]} 28. Bc3 {[%emt 0:00:00]} Nf3 {[%emt 0:00:53] Inhibits d4.} 29. Bg2 {[%emt 0:00:00]} Nd4 {[%emt 0:01:19]} (29... Ne5 $11 {keeps the balance.}) 30. Bxd4 $16 {[%emt 0:00:00]} cxd4 {[%emt 0:00:12][%mdl 4096] Endgame KRB-KRB} 31. Re1 {[%emt 0:00:00]} Re8 {[%emt 0:00:31]} (31... Bxg2 $16 32. Kxg2 h5) 32. Bxc6 {[%emt 0:00:00] White is clearly better.} dxc6 {[%emt 0:00:05]} 33. Rxe8 {[%emt 0:00:00]} Kxe8 {[%emt 0:00:03]} 34. Kf3 {[%emt 0:00:00] [#] Hoping for Ke4.} Kd7 {[%emt 0:00:03]} 35. Ke4 {[%emt 0:00:00]} Kd6 {[%emt 0:00:03]} (35... c5 $2 36. Kd5 $18) 36. Kxd4 {[%emt 0:00:00][%cal Oc4c5] Black must now prevent c5+!} c5+ {[%emt 0:00:03]} 37. Ke4 {[%emt 0:16:30] Weighted Error Value: White=0.03 (flawless) /Black=0.09 (flawless)} 1/2-1/2

[Event "5th Sharjah Masters 2022"]
[Site "Sharjah"]
[Date "2022.05.23"]
[Round "3.20"]
[White "Sankalp Gupta"]
[Black "Moussard, Jules"]
[Result "1/2-1/2"]
[ECO "B12"]
[WhiteElo "2505"]
[BlackElo "2651"]
[Annotator "TA"]
[PlyCount "99"]
[EventDate "2022.05.21"]
[EventType "swiss"]
[EventCountry "UAE"]
[SourceTitle "playchess.com"]
[Source "ChessBase"]
[SourceQuality "1"]
[TimeControl "5400+30"]

{[%evp 11,99,18,23,26,32,25,37,21,40,45,48,42,43,41,45,43,47,29,34,30,30,36,31,36,58,37,47,14,20,12,70,68,71,57,61,67,82,73,95,90,110,106,116,85,118,91,96,120,114,79,75,81,202,197,193,95,84,85,81,31,56,50,77,73,88,77,84,85,81,0,91,89,90,80,91,85,95,44,33,33,56,91,79,66,89,0,98,0,71,0]} 1. e4 {[%emt 0:00:03]} c6 {[%emt 0:00:11]} 2. d4 {[%emt 0:04:38]} d5 {[%emt 0:00:25]} 3. e5 {[%emt 0:00:23]} Bf5 {[%emt 0:00:00]} 4. Nf3 {[%emt 0:00:04]} e6 {[%emt 0:00:10]} 5. Be2 {[%emt 0:00:59]} Ne7 {[%emt 0:02:40]} 6. O-O {[%emt 0:03:33]} h6 {[%emt 0:01:17]} 7. Nbd2 {[%emt 0:00:29] B12: Caro-Kann: Advance Variation.} Nd7 {[%emt 0:02:24]} 8. Nb3 {[%emt 0:00:08]} Qc7 {[%emt 0:01:53]} 9. a4 {[%emt 0:03:03] White is slightly better.} g5 $1 {[%emt 0:03:46] The main line 9...g5 scores better than 9...a5.} 10. Bd2 {[%emt 0:01:37]} O-O-O {[%emt 0:17:06]} 11. Ba5 {[%emt 0:03:18]} b6 {[%emt 0:02:11]} 12. Bd2 {[%emt 0:00:16]} a5 $1 {[%emt 0:05:21]} 13. Rc1 {[%emt 0:01:05]} Kb7 {[%emt 0:03:43]} 14. c4 {[%emt 0:00:01]} dxc4 {[%emt 0:00:27]} 15. Bxc4 {[%emt 0:00:15]} Nb8 {[%emt 0:02:56]} 16. Ne1 {[%emt 0:04:56]} Nd5 {[%emt 0:02:28]} 17. Nc2 {[%emt 0:04:19]} Bg6 {[%emt 0:03:07]} 18. Qe2 {[%emt 0:13:51]} Be7 {[%emt 0:04:29] [#]} 19. Ne1 $146 {[%emt 0:02:20]} (19. Ne3 {seems wilder.} Nf4 20. Qf3 h5 21. Bb5) ({Predecessor:} 19. Nba1 h5 20. b4 axb4 21. Nb3 h4 22. h3 Qd7 23. Rfd1 g4 24. hxg4 h3 25. g3 {1-0 (36) Slyusar,V (2305)-Packroff,H (2241) ICCF email 2019}) 19... Ka8 {[%emt 0:04:42]} 20. Bd3 {[%emt 0:00:24]} Qd7 {[%emt 0:05:16]} (20... Bf5 $11) 21. Bxg6 $1 $14 {[%emt 0:17:25]} fxg6 {[%emt 0:00:19]} 22. Qe4 {[%emt 0:00:02]} Rhg8 {[%emt 0:04:38]} 23. Nd3 {[%emt 0:00:02]} Nc7 {[%emt 0:01:37]} 24. Rc3 $1 {[%emt 0:03:44]} Qd5 {[%emt 0:01:32]} 25. Qe2 {[%emt 0:00:39]} Nca6 {[%emt 0:00:57]} 26. Rfc1 {[%emt 0:01:05]} Rc8 {[%emt 0:01:30]} 27. Be3 {[%emt 0:00:20]} (27. Rc4 {is interesting.} Rgd8 28. h3 Kb7 29. Be3) 27... Rgd8 {[%emt 0:04:46]} 28. Nd2 {[%emt 0:00:25]} Nb4 {[%emt 0:02:41]} 29. Nxb4 {[%emt 0:01:48]} Bxb4 {[%emt 0:02:30]} 30. Nc4 {[%emt 0:00:01]} Kb7 {[%emt 0:01:00]} 31. R3c2 {[%emt 0:00:02]} Nd7 {[%emt 0:02:15] [#]} (31... Na6 $16) 32. Bd2 $1 $18 {[%emt 0:02:17] And now Bxb4 would win.} Be7 {[%emt 0:00:11]} (32... Qxd4 $2 33. Bxb4 Nxe5 34. Nxe5 $18) 33. Bc3 {[%emt 0:06:00]} (33. Qe1 $18 {and White stays clearly on top.}) 33... Nb8 $16 {[%emt 0:00:22]} 34. b3 {[%emt 0:06:04]} Na6 {[%emt 0:01:26]} 35. Ne3 {[%emt 0:04:28]} ({White should play} 35. Qd3 $16) 35... Qd7 {[%emt 0:04:52]} (35... Qxb3 $2 {[#]} 36. Bxa5 $1 Nb4 37. Rb2 Qxa4 38. Bxb4 Bxb4 39. Ra2 $18 (39. Qc4 c5 $14)) 36. Qd3 {[%emt 0:00:48]} Qe8 {[%emt 0:00:37]} 37. Qe4 {[%emt 0:00:36]} h5 {[%emt 0:00:54]} 38. h3 {[%emt 0:01:24]} Ba3 {[%emt 0:00:28]} 39. Ra1 {[%emt 0:00:29]} Be7 {[%emt 0:00:08]} 40. Rac1 {[%emt 0:00:05]} (40. Bd2 {looks sharper.} g4 41. hxg4 hxg4 42. Rc4) 40... Ba3 $1 {[%emt 0:00:17]} 41. Rd1 {[%emt 0:01:03]} Be7 {[%emt 0:00:35]} 42. Rd3 {[%emt 0:02:29] White is more active.} Nb4 {[%emt 0:04:10]} 43. Bxb4 {[%emt 0:00:10]} Bxb4 {[%emt 0:00:04]} 44. Rd1 {[%emt 0:01:12]} (44. Nd1 $16) 44... Qf7 $1 $14 {[%emt 0:01:50]} 45. Rdc1 {[%emt 0:00:44][%cal Rc2c6]} Qe8 {[%emt 0:00:54]} 46. Rc4 {[%emt 0:00:27]} Be7 {[%emt 0:00:38]} 47. Kf1 {[%emt 0:00:30]} Bf8 {[%emt 0:01:30]} 48. Kg1 {[%emt 0:01:04]} Be7 $1 {[%emt 0:00:04]} 49. Kf1 {[%emt 0:00:04]} Bf8 $1 {[%emt 0:00:08]} 50. Kg1 {[%emt 0:00:11] Weighted Error Value: White=0.15 (very precise) /Black=0.09 (flawless)} ({White should try} 50. Nd1 $16) 1/2-1/2

[Event "5th Sharjah Masters 2022"]
[Site "Sharjah"]
[Date "2022.05.23"]
[Round "3.21"]
[White "Sargsyan, Shant"]
[Black "Ortega Amarelle, Mariano"]
[Result "1-0"]
[ECO "D35"]
[WhiteElo "2641"]
[BlackElo "2476"]
[Annotator "TA"]
[PlyCount "129"]
[EventDate "2022.05.21"]
[EventType "swiss"]
[EventCountry "UAE"]
[SourceTitle "playchess.com"]
[Source "ChessBase"]
[SourceQuality "1"]
[TimeControl "5400+30"]

{[%evp 12,129,23,16,14,0,0,1,14,6,8,5,41,35,30,15,28,7,14,20,21,0,-8,-10,-9,-7,-20,-23,0,0,-16,-36,0,0,25,29,34,-7,0,0,0,0,0,0,0,0,0,0,0,0,0,0,0,0,0,0,0,-31,0,0,0,0,0,0,0,0,0,0,0,0,0,0,0,0,0,0,0,0,0,0,0,0,3,0,76,69,111,111,111,111,111,11,18,0,0,0,22,22,18,18,15,15,135,135,150,185,155,68,337,314,335,328,564,543,617,590,581,575,638,520]} 1. d4 {[%emt 0:01:00]} Nf6 {[%emt 0:00:11]} 2. c4 {[%emt 0:00:15]} e6 {[%emt 0:00:08]} 3. Nc3 {[%emt 0:00:19]} d5 {[%emt 0:01:58]} 4. cxd5 {[%emt 0:00:40]} Nxd5 {[%emt 0:03:27]} 5. e4 {[%emt 0:00:41]} Nxc3 {[%emt 0:00:08]} 6. bxc3 {[%emt 0:00:06]} c5 {[%emt 0:00:07]} 7. Rb1 {[%emt 0:00:57]} Be7 {[%emt 0:06:53] D35: Queen's Gambit Declined: Exchange Variation.} 8. Nf3 {[%emt 0:01:04][%cal Bg1f3,Bf3e5,Be5c4][%mdl 32]} O-O {[%emt 0:00:55]} 9. Bc4 {[%emt 0:02:43]} cxd4 {[%emt 0:07:35] The position is equal. 9...a6 gains popularity.} 10. cxd4 {[%emt 0:00:29]} b6 {[%emt 0:00:17]} 11. O-O {[%emt 0:04:44]} Ba6 {[%emt 0:14:30]} 12. Bxa6 {[%emt 0:01:37]} Nxa6 {[%emt 0:00:08] [#]} 13. Ne5 $146 {[%emt 0:01:08]} ({Predecessor:} 13. Qa4 Nb8 14. Rd1 Qd7 15. Qb3 Nc6 16. d5 exd5 17. exd5 Na5 18. Qd3 Bf6 19. Bg5 {1-0 (58) Oleksienko,M (2618)-Adly,A (2601) Ordu 2016}) 13... Bd6 {[%emt 0:10:39]} 14. Qh5 {[%emt 0:04:11]} f6 {[%emt 0:17:57]} 15. Nc4 {[%emt 0:03:48]} Be7 {[%emt 0:01:15]} 16. d5 {[%emt 0:08:55] [#] Strongly threatening d6.} Qe8 {[%emt 0:05:08]} 17. Qh3 {[%emt 0:02:33]} Bc5 {[%emt 0:03:28]} 18. d6 {[%emt 0:28:35]} Rc8 {[%emt 0:09:30][%cal Oc5f2]} 19. Rd1 {[%emt 0:05:43]} Qf7 {[%emt 0:07:17][%cal Oc5f2]} (19... Bxf2+ $2 20. Kxf2 Rxc4 21. d7 Rc2+ 22. Kg1 $18) 20. Qb3 {[%emt 0:02:33]} (20. d7 Rcd8 21. Qd3 Nb8 $17) 20... e5 {[%emt 0:03:02]} 21. Be3 {[%emt 0:04:24] Against Bd4} (21. Qb5 {looks sharper.} Nb4 22. d7 Rcd8 23. Rxb4 a6 24. Qa4) 21... Bxe3 {[%emt 0:01:09]} (21... Bd4 22. Bxd4 Rxc4 23. Be3 $14) (21... Rfd8 {is interesting.} 22. Qb5 Nb4 23. d7 Rc7) 22. Nxe3 {[%emt 0:00:06]} Qxb3 {[%emt 0:01:51]} 23. axb3 {[%emt 0:00:50]} Nc5 {[%emt 0:00:58]} 24. f3 {[%emt 0:00:50]} (24. b4 $5 {[%cal Rb4c5]} Nxe4 25. d7 $16) 24... Rf7 {[%emt 0:03:00]} 25. b4 {[%emt 0:06:32]} Ne6 {[%emt 0:00:05]} 26. Nd5 {[%emt 0:02:32]} Rd8 {[%emt 0:01:11]} 27. Ne7+ {[%emt 0:00:48]} Kf8 $1 {[%emt 0:00:01]} 28. Nc6 {[%emt 0:00:08] Against Nd4} Rc8 {[%emt 0:00:48]} 29. b5 {[%emt 0:00:44] aiming for d7.} Rd7 {[%emt 0:00:43]} 30. Ra1 {[%emt 0:00:07]} Ra8 {[%emt 0:01:11]} 31. Kf2 {[%emt 0:02:03]} Kf7 {[%emt 0:00:00]} 32. Rd3 {[%emt 0:06:55]} Nc5 {[%emt 0:00:08]} 33. Rda3 {[%emt 0:00:04]} Ke6 {[%emt 0:00:26]} 34. Ke3 {[%emt 0:00:28][%cal Rc6a7]} Rxd6 {[%emt 0:00:50]} (34... Kxd6 $5 {[%cal Ra7a5]} 35. Nxa7 Kc7 $11) 35. Rxa7 {[%emt 0:00:35]} Rxa7 {[%emt 0:00:20]} 36. Rxa7 $15 {[%emt 0:00:01][%csl Gc6][%cal Ra7e7][%mdl 4096] Endgame KRN-KRN} Rd7 {[%emt 0:00:20] Against Re7+} 37. Ra3 {[%emt 0:01:28]} Rd1 {[%emt 0:00:08]} 38. Nb4 {[%emt 0:00:33]} Rb1 {[%emt 0:01:03]} 39. Nd5 {[%emt 0:00:04]} Kd6 {[%emt 0:00:38]} 40. Nxb6 {[%emt 0:03:09]} Rxb5 {[%emt 0:00:16]} 41. Nc4+ {[%emt 0:00:04]} Ke6 {[%emt 0:00:40]} 42. Ra7 {[%emt 0:00:30]} Rb7 {[%emt 0:00:13]} 43. Ra5 {[%emt 0:00:13]} Rb3+ {[%emt 0:00:32]} 44. Ke2 {[%emt 0:00:29]} Nd7 {[%emt 0:00:28]} 45. Ra6+ {[%emt 0:00:10]} Ke7 {[%emt 0:00:14]} 46. Ne3 {[%emt 0:00:06]} Rb2+ {[%emt 0:00:14]} 47. Kf1 {[%emt 0:00:16]} Nc5 {[%emt 0:00:33]} (47... Rb1+ $11 48. Kf2 Kf7) 48. Nf5+ $16 {[%emt 0:00:25]} Kf8 {[%emt 0:01:12]} 49. Ra8+ {[%emt 0:00:16]} Kf7 {[%emt 0:00:07]} 50. Ra7+ {[%emt 0:00:03]} Kf8 {[%emt 0:00:15]} 51. Rxg7 {[%emt 0:01:43]} ({White should play} 51. Nxg7 $16 {And now Nh5 would win.} Rb7 52. Rxb7 Nxb7 53. Nf5) 51... Nd3 $11 {[%emt 0:00:18]} 52. h4 {[%emt 0:03:36]} h5 {[%emt 0:00:09]} 53. Kg1 {[%emt 0:01:04]} Ne1 {[%emt 0:00:22]} 54. Rg6 {[%emt 0:01:21]} Kf7 {[%emt 0:00:16]} 55. Rg3 {[%emt 0:00:09]} Ra2 {[%emt 0:00:57]} 56. Nh6+ {[%emt 0:00:19]} Ke6 {[%emt 0:00:38] [#]} (56... Kf8 $11 {keeps the balance.}) 57. Rg7 $1 $16 {[%emt 0:00:26] Hoping for Kf1.} Kd6 {[%emt 0:00:34]} 58. Nf5+ {[%emt 0:00:47]} Kc5 {[%emt 0:00:07]} 59. Rg6 {[%emt 0:00:56]} (59. Ne3 $16) 59... Kc4 $2 {[%emt 0:00:19][%mdl 8192] Loses the game.} (59... Nd3 $1 $14) 60. Ng7 $18 {[%emt 0:00:19]} ({And not} 60. Rxf6 Nxg2 61. Kh1 Nf4 $11) 60... Ra1 {[%emt 0:00:49]} 61. Kh2 {[%emt 0:00:24]} ({Not} 61. Rxf6 Nxf3+ 62. Kf2 Nd2 63. Rc6+ Kd4 $14) 61... Ra2 $2 {[%emt 0:00:19]} (61... Ra8 62. Nxh5 Rh8) 62. Kh3 {[%emt 0:00:36] White is clearly winning.} Ra3 {[%emt 0:01:53]} 63. Nxh5 {[%emt 0:00:18]} Nd3 {[%emt 0:00:35]} 64. Rxf6 {[%emt 0:00:14]} Kd4 {[%emt 0:00:08]} 65. Kg4 {[%emt 0:03:54] Weighted Error Value: White=0.08 (flawless) /Black=0.27 (precise)} 1-0

[Event "5th Sharjah Masters 2022"]
[Site "Sharjah"]
[Date "2022.05.23"]
[Round "3.22"]
[White "Gunina, Valentina"]
[Black "Ter-Sahakyan, Samvel"]
[Result "0-1"]
[ECO "D38"]
[WhiteElo "2471"]
[BlackElo "2640"]
[Annotator "TA"]
[PlyCount "72"]
[EventDate "2022.05.21"]
[EventType "swiss"]
[EventCountry "UAE"]
[SourceTitle "playchess.com"]
[Source "ChessBase"]
[SourceQuality "1"]
[TimeControl "5400+30"]

{[%evp 12,72,12,0,6,-23,0,-3,-21,-14,-20,-27,-25,-43,-51,-50,-17,-19,0,0,0,-65,10,20,21,-60,-53,-99,-111,-106,-101,-116,-59,-133,-111,-227,-161,-333,-345,-324,-338,-335,-331,-355,-347,-356,-349,-384,-402,-533,-525,-555,-546,-499,-561,-569,-512,-751,-747,-816,-743,-733,-733]} 1. d4 {[%emt 0:00:04]} Nf6 {[%emt 0:00:10]} 2. c4 {[%emt 0:00:09]} e6 {[%emt 0:00:04]} 3. Nf3 {[%emt 0:00:05]} d5 {[%emt 0:00:03]} 4. Nc3 {[%emt 0:00:05]} Bb4 {[%emt 0:00:04]} 5. Qa4+ {[%emt 0:00:11]} Nc6 {[%emt 0:00:06]} 6. a3 {[%emt 0:00:04]} Bxc3+ {[%emt 0:00:05]} 7. bxc3 {[%emt 0:00:04]} Ne4 {[%emt 0:00:21] D38: Queen's Gambit Declined: Ragozin Defence (4 Nf3 Bb4).} 8. Bf4 {[%emt 0:00:23]} Nxc3 {[%emt 0:01:19]} 9. Qc2 {[%emt 0:00:06]} Ne4 {[%emt 0:00:04] The position is equal.} 10. e3 {[%emt 0:00:16]} g5 $1 {[%emt 0:01:22]} 11. Bg3 {[%emt 0:00:06]} h5 {[%emt 0:00:13] aiming for ...h4.} 12. h4 {[%emt 0:00:07] [#]} Nxg3 $146 {[%emt 0:06:18]} ({Predecessor:} 12... g4 13. Ng5 Nxg3 14. fxg3 Qd6 15. Qf2 f5 16. Bd3 Ne7 17. O-O c6 18. Kh2 Bd7 {0-1 (35) Makarian,R (2470)-Sarana,A (2649) Sochi 2021}) 13. fxg3 {[%emt 0:00:31]} gxh4 {[%emt 0:00:12]} (13... g4 $5 {[%cal Rg4f3]} 14. Ng5 Qd6 $11) 14. Rxh4 {[%emt 0:00:28]} Qd6 {[%emt 0:00:39]} 15. Rf4 {[%emt 0:09:01]} Bd7 {[%emt 0:18:30]} 16. Kf2 {[%emt 0:17:20]} (16. c5 $1 $11 Qf8 17. Rb1) 16... e5 {[%emt 0:30:16]} (16... O-O-O $15) 17. dxe5 $11 {[%emt 0:08:34]} Nxe5 {[%emt 0:00:47]} 18. Qc3 {[%emt 0:00:45]} ({White should play} 18. Qb2 $11 f6 19. Qxb7) 18... f6 $15 {[%emt 0:00:48]} 19. Rd1 {[%emt 0:00:09] [#]} (19. c5 $15 Qe7 20. Rb1) 19... Ng4+ $1 $17 {[%emt 0:06:06]} 20. Kg1 {[%emt 0:05:18][%cal Of4e4] [#]} O-O-O $1 $36 {[%emt 0:00:58][%mdl 2048] Black is on the roll.} 21. cxd5 {[%emt 0:00:41]} Rhe8 {[%emt 0:00:48]} ({Better is} 21... Rde8 $17 22. Re1 Qxd5) 22. Qd4 {[%emt 0:05:13]} (22. e4 $15) 22... Qxa3 {[%emt 0:06:19]} 23. Bd3 {[%emt 0:01:52]} (23. Rd3 $17 Qa5 24. Rb3) 23... c5 {[%emt 0:03:56]} ({Don't play} 23... Nxe3 24. Ra1 Nc2 25. Bxc2 Qe3+ 26. Qxe3 Rxe3 27. Rxa7 $18) 24. Qa1 {[%emt 0:08:40]} (24. Ra1 {is the only way for White.}) 24... Qxa1 $19 {[%emt 0:02:40]} 25. Rxa1 {[%emt 0:00:39]} Rxe3 {[%emt 0:02:24]} ({Worse is} 25... Nxe3 26. Rxf6 c4 27. Rc1 $19) 26. Bg6 {[%emt 0:01:18]} Be8 {[%emt 0:00:07]} 27. Bf5+ {[%emt 0:00:41]} Kb8 {[%emt 0:00:04]} 28. Be6 {[%emt 0:01:16]} b5 {[%emt 0:00:39][%cal Oa7a5]} 29. Rc1 {[%emt 0:04:10]} a5 {[%emt 0:00:34][%cal Ba7a5,Ba5a4,Ba4a3][%mdl 32]} 30. Kf1 {[%emt 0:00:55]} c4 {[%emt 0:02:54] Black is clearly winning.} 31. Nd4 {[%emt 0:02:47]} a4 {[%emt 0:01:14]} 32. Rb1 {[%emt 0:01:41]} a3 {[%emt 0:01:31]} 33. Ra1 {[%emt 0:07:16]} Rc3 {[%emt 0:05:29] Inhibits Nc2.} 34. Ke1 {[%emt 0:02:23]} b4 {[%emt 0:02:42]} 35. Re4 {[%emt 0:14:44]} Re3+ {[%emt 0:01:48]} 36. Rxe3 {[%emt 0:00:04]} Nxe3 {[%emt 0:00:04] Weighted Error Value: White=0.50/Black=0.16 (very precise)} 0-1

[Event "5th Sharjah Masters 2022"]
[Site "Sharjah"]
[Date "2022.05.23"]
[Round "3.23"]
[White "Petrosyan, Manuel"]
[Black "Badelka, Olga"]
[Result "1-0"]
[ECO "E51"]
[WhiteElo "2638"]
[BlackElo "2453"]
[Annotator "TA"]
[PlyCount "85"]
[EventDate "2022.05.21"]
[EventType "swiss"]
[EventCountry "UAE"]
[SourceTitle "playchess.com"]
[Source "ChessBase"]
[SourceQuality "1"]
[TimeControl "5400+30"]

{[%evp 20,85,32,23,68,24,48,42,42,42,53,54,44,42,42,42,42,42,49,50,48,14,51,60,60,45,43,45,54,54,121,126,120,80,82,102,133,103,144,142,137,141,289,256,308,289,330,294,901,895,879,855,820,777,1486,1362,1227,1210,29958,10718,29978,29979,29989,29980,29980,29981,29981,29970]} 1. d4 {[%emt 0:01:11]} Nf6 {[%emt 0:00:10]} 2. c4 {[%emt 0:00:07]} e6 {[%emt 0:00:05]} 3. Nf3 {[%emt 0:00:18]} d5 {[%emt 0:00:09]} 4. Nc3 {[%emt 0:00:09]} Bb4 {[%emt 0:00:44]} 5. Qa4+ {[%emt 0:01:22]} Nc6 {[%emt 0:00:07]} 6. e3 {[%emt 0:00:07]} O-O {[%emt 0:00:26]} 7. Qc2 {[%emt 0:00:20]} dxc4 {[%emt 0:07:38]} 8. Bxc4 {[%emt 0:00:31]} Bd6 {[%emt 0:00:07]} 9. O-O {[%emt 0:00:21]} e5 {[%emt 0:00:25]} 10. h3 {[%emt 0:01:12]} a6 {[%emt 0:04:56]} 11. a3 {[%emt 0:02:27]} Qe7 {[%emt 0:13:46] E51: Nimzo-Indian: Rubinstein: 4...0-0 5 Nf3 d5.} 12. d5 {[%emt 0:05:23] [#]} (12. b4 {with more complications.} h6 13. Bb2 Re8 14. Rae1) 12... Na5 $146 {[%emt 0:03:14]} ({Predecessor:} 12... Nb8 13. e4 Bc5 14. b4 Ba7 15. Ne2 c6 16. Bb2 Nbd7 17. Ng3 g6 18. dxc6 bxc6 19. Rad1 {0-1 (47) O'Donnell,C (2342)-Cornette,D (2447) Chess.com INT 2017}) 13. Bd3 {[%emt 0:12:23]} b5 {[%emt 0:01:26] White is slightly better.} 14. b4 {[%emt 0:06:23]} Nb7 {[%emt 0:04:03]} 15. e4 {[%emt 0:04:32]} Bd7 {[%emt 0:00:47]} 16. Bg5 {[%emt 0:03:12][%cal Bc1g5,Bg5h4,Bh4g3][%mdl 32]} h6 {[%emt 0:01:48]} 17. Bh4 {[%emt 0:00:15]} g5 {[%emt 0:03:14]} 18. Bg3 {[%emt 0:03:53]} Nh5 {[%emt 0:01:19]} 19. Nh2 {[%emt 0:01:58]} Nf4 {[%emt 0:03:06]} 20. Ng4 {[%emt 0:00:43]} Kh7 {[%emt 0:10:06]} 21. Ne3 {[%emt 0:03:02]} f6 {[%emt 0:03:02]} 22. Nf5 {[%emt 0:07:17]} Bxf5 {[%emt 0:00:35]} 23. exf5 {[%emt 0:00:06]} Nxd3 {[%emt 0:11:11]} 24. Qxd3 {[%emt 0:00:23]} a5 {[%emt 0:06:02]} ({Better is} 24... Qd7 $14) 25. Qxb5 $16 {[%emt 0:09:07]} Rfb8 {[%emt 0:01:10]} 26. Rab1 {[%emt 0:01:12] White is more active.} axb4 {[%emt 0:02:12]} 27. axb4 {[%emt 0:02:15]} Na5 {[%emt 0:03:05]} 28. Qe2 {[%emt 0:00:28]} Rxb4 {[%emt 0:01:48]} 29. Rxb4 {[%emt 0:01:20]} ({Much weaker is} 29. Qh5 $6 Qe8 30. Qxe8 Rxe8 $11) 29... Bxb4 {[%emt 0:00:04]} 30. Ne4 {[%emt 0:00:09] Qb5 is the strong threat.} Kg7 {[%emt 0:14:38] A mistake that costs the game.} (30... Nb3 $16 {was called for.}) 31. Rb1 {[%emt 0:04:02][%cal Oe4f6]} ({Not} 31. Qh5 Qf7 32. Qe2 Be7 $14) 31... Bd6 {[%emt 0:02:01]} 32. f3 {[%emt 0:01:59]} ({Weaker is} 32. Qh5 Qe8 33. Qe2 Ra7 $14) 32... Qe8 {[%emt 0:00:57]} 33. Qc2 {[%emt 0:01:18] [#] Strongly threatening Be1.} Rb8 $2 {[%emt 0:00:48]} (33... Qc8 34. Bf2 Nb7) 34. Nxd6 $18 {[%emt 0:05:55]} Rxb1+ {[%emt 0:00:07]} 35. Qxb1 {[%emt 0:00:04]} cxd6 {[%emt 0:00:03][%mdl 4096] Endgame KQB-KQN} 36. Qb6 {[%emt 0:00:08][%csl LRa5,LRd6]} Qa8 {[%emt 0:02:20]} 37. Qc7+ {[%emt 0:01:28]} Kg8 {[%emt 0:00:03]} 38. Qxd6 {[%emt 0:00:06]} Qf8 {[%emt 0:00:25]} 39. Qc7 {[%emt 0:01:48]} Qb4 {[%emt 0:00:25]} 40. d6 {[%emt 0:00:40][%cal Bd5d6,Bd6d7][%mdl 32] White mates.} Nb7 {[%emt 0:00:19]} 41. d7 {[%emt 0:00:49]} Qd4+ {[%emt 0:00:07]} 42. Bf2 {[%emt 0:00:35]} Qd5 {[%emt 0:00:15]} 43. Bb6 {[%emt 0:01:43] Weighted Error Value: White=0.07 (flawless) /Black=0.49} 1-0